[Event "Late-Titled-Tuesday-Blitz-April-23-2024"]
[Site "Chess.com"]
[Date "2024.04.23"]
[Round "1"]
[White "albi1999"]
[Black "GAO"]
[Result "1-0"]
[WhiteElo "2643"]
[BlackElo "2334"]
[TimeControl "180+1"]
[EndTime "14:08:18 PDT"]
[Termination "albi1999 won by resignation"]

1. b3 {[%clk 0:02:57]} 1... e5 {[%clk 0:02:59.2]} 2. Bb2 {[%clk 0:02:57.9]} 2...
Nc6 {[%clk 0:02:59.5]} 3. e3 {[%clk 0:02:57.5]} 3... Nf6 {[%clk 0:02:58.4]} 4.
Nf3 {[%clk 0:02:58.1]} 4... e4 {[%clk 0:02:57.5]} 5. Nd4 {[%clk 0:02:58.5]} 5...
Nxd4 {[%clk 0:02:57.1]} 6. Bxd4 {[%clk 0:02:59.4]} 6... d5 {[%clk 0:02:57.5]} 7.
c4 {[%clk 0:02:59.5]} 7... Be7 {[%clk 0:02:52.7]} 8. Nc3 {[%clk 0:02:57.7]} 8...
c6 {[%clk 0:02:52.2]} 9. cxd5 {[%clk 0:02:52.3]} 9... cxd5 {[%clk 0:02:51.7]}
10. d3 {[%clk 0:02:45.3]} 10... O-O {[%clk 0:02:51.1]} 11. dxe4 {[%clk
0:02:44.6]} 11... dxe4 {[%clk 0:02:50.5]} 12. Be2 {[%clk 0:02:43.1]} 12... Re8
{[%clk 0:02:49.2]} 13. O-O {[%clk 0:02:41.8]} 13... a6 {[%clk 0:02:49.7]} 14.
Na4 {[%clk 0:02:36]} 14... Bf5 {[%clk 0:02:46.8]} 15. Nb6 {[%clk 0:02:35]} 15...
Rb8 {[%clk 0:02:39.1]} 16. Rc1 {[%clk 0:02:35.1]} 16... Nd5 {[%clk 0:02:32.7]}
17. Nxd5 {[%clk 0:02:08.4]} 17... Qxd5 {[%clk 0:02:33.6]} 18. Bb6 {[%clk
0:01:58.4]} 18... Qe6 {[%clk 0:02:15.7]} 19. Qd4 {[%clk 0:01:46.6]} 19... Bf6
{[%clk 0:02:11]} 20. Qb4 {[%clk 0:01:46.5]} 20... Be7 {[%clk 0:02:09.9]} 21. Qa5
{[%clk 0:01:45.8]} 21... Rbc8 {[%clk 0:02:04.5]} 22. Bc4 {[%clk 0:01:45.2]}
22... Qg6 {[%clk 0:02:03.3]} 23. Bc7 {[%clk 0:01:33.1]} 23... Ba3 {[%clk
0:01:33.6]} 24. Rcd1 {[%clk 0:01:20.9]} 24... Bg4 {[%clk 0:01:29.7]} 25. Rd2
{[%clk 0:01:09.4]} 25... Bb4 {[%clk 0:01:05.7]} 26. Qxb4 {[%clk 0:01:08.3]}
26... Rxc7 {[%clk 0:01:06.3]} 27. Kh1 {[%clk 0:00:56.1]} 27... h5 {[%clk
0:00:45.3]} 28. h3 {[%clk 0:00:54.3]} 28... Bc8 {[%clk 0:00:33.1]} 29. a4 {[%clk
0:00:50.2]} 29... h4 {[%clk 0:00:32.1]} 30. Rfd1 {[%clk 0:00:49.6]} 30... Kh7
{[%clk 0:00:23]} 31. Qa5 {[%clk 0:00:46.5]} 31... Rce7 {[%clk 0:00:20.4]} 32.
Rd6 {[%clk 0:00:45.6]} 32... f6 {[%clk 0:00:18]} 33. Qd5 {[%clk 0:00:40.9]}
33... Re5 {[%clk 0:00:16]} 34. Qf7 {[%clk 0:00:32.6]} 34... Qxf7 {[%clk
0:00:06.7]} 35. Bxf7 {[%clk 0:00:33.5]} 35... R8e7 {[%clk 0:00:07.6]} 36. Bd5
{[%clk 0:00:31.3]} 36... Be6 {[%clk 0:00:08.1]} 37. a5 {[%clk 0:00:17.4]} 37...
Bxd5 {[%clk 0:00:06.8]} 38. R1xd5 {[%clk 0:00:18.3]} 38... Kg6 {[%clk
0:00:06.1]} 39. b4 {[%clk 0:00:16.6]} 39... Kf5 {[%clk 0:00:06.4]} 40. Rd4
{[%clk 0:00:16]} 40... g5 {[%clk 0:00:06]} 41. Rb6 {[%clk 0:00:15.6]} 41... R5e6
{[%clk 0:00:04.7]} 42. Rdd6 {[%clk 0:00:11.1]} 42... Rxd6 {[%clk 0:00:04.1]} 43.
Rxd6 {[%clk 0:00:12]} 43... Rc7 {[%clk 0:00:04.7]} 44. Kh2 {[%clk 0:00:08.8]}
44... Rc4 {[%clk 0:00:04.8]} 45. Rb6 {[%clk 0:00:08.3]} 45... Rc7 {[%clk
0:00:05.5]} 46. g4+ {[%clk 0:00:08.3]} 46... Kg6 {[%clk 0:00:04.6]} 47. Kg2
{[%clk 0:00:07.4]} 47... Kf7 {[%clk 0:00:05]} 48. b5 {[%clk 0:00:07.2]} 48...
axb5 {[%clk 0:00:04.7]} 49. Rxb5 {[%clk 0:00:07.8]} 49... Rd7 {[%clk 0:00:05.3]}
50. Rb4 {[%clk 0:00:08.2]} 50... Rd5 {[%clk 0:00:05.1]} 51. Rxb7+ {[%clk
0:00:08.1]} 51... Ke6 {[%clk 0:00:05.3]} 52. Ra7 {[%clk 0:00:08.1]} 52... Rd2
{[%clk 0:00:04.9]} 53. a6 {[%clk 0:00:07.9]} 53... Ra2 {[%clk 0:00:05.1]} 54.
Ra8 {[%clk 0:00:08.5]} 54... Kf7 {[%clk 0:00:04.6]} 55. Kf1 {[%clk 0:00:08.5]}
55... Kg7 {[%clk 0:00:04.6]} 56. Ke1 {[%clk 0:00:08.4]} 56... f5 {[%clk
0:00:02.5]} 57. gxf5 {[%clk 0:00:08.5]} 57... Kf6 {[%clk 0:00:03.4]} 58. a7
{[%clk 0:00:08.5]} 58... Ra1+ {[%clk 0:00:03.1]} 59. Ke2 {[%clk 0:00:08.4]}
59... Ra2+ {[%clk 0:00:04]} 60. Kf1 {[%clk 0:00:08.9]} 60... Kg7 {[%clk
0:00:04.9]} 61. f6+ {[%clk 0:00:08.2]} 61... Kh7 {[%clk 0:00:04.3]} 62. f7
{[%clk 0:00:07.9]} 62... Ra1+ {[%clk 0:00:05.1]} 63. Kg2 {[%clk 0:00:08]} 63...
Ra2 {[%clk 0:00:06]} 64. f8=Q {[%clk 0:00:08.3]} 64... Rxf2+ {[%clk 0:00:06.1]}
65. Qxf2 {[%clk 0:00:08]} 1-0

[Event "Late-Titled-Tuesday-Blitz-April-23-2024"]
[Site "Chess.com"]
[Date "2024.04.23"]
[Round "1"]
[White "Flaccidmoves"]
[Black "BlueWizzard"]
[Result "0-1"]
[WhiteElo "2453"]
[BlackElo "2797"]
[TimeControl "180+1"]
[EndTime "14:08:26 PDT"]
[Termination "BlueWizzard won on time"]

1. c4 {[%clk 0:02:58.9]} 1... e5 {[%clk 0:02:58]} 2. Nf3 {[%clk 0:02:57.9]} 2...
Nc6 {[%clk 0:02:53.9]} 3. Nc3 {[%clk 0:02:57.3]} 3... g6 {[%clk 0:02:45.8]} 4.
d4 {[%clk 0:02:53.2]} 4... exd4 {[%clk 0:02:45.3]} 5. Nxd4 {[%clk 0:02:54.1]}
5... Bg7 {[%clk 0:02:45.3]} 6. Nxc6 {[%clk 0:02:40.4]} 6... bxc6 {[%clk
0:02:37.8]} 7. g3 {[%clk 0:02:38.1]} 7... Nf6 {[%clk 0:02:33.2]} 8. Bg2 {[%clk
0:02:37.7]} 8... O-O {[%clk 0:02:33.1]} 9. O-O {[%clk 0:02:37.8]} 9... Qe7
{[%clk 0:02:30.1]} 10. Be3 {[%clk 0:02:25.5]} 10... Qb4 {[%clk 0:02:21]} 11. Qb3
{[%clk 0:02:14.3]} 11... a5 {[%clk 0:02:20.7]} 12. Bd4 {[%clk 0:01:09.7]} 12...
Ba6 {[%clk 0:02:15.1]} 13. Qc2 {[%clk 0:00:55.6]} 13... Qxc4 {[%clk 0:02:07.9]}
14. Rfd1 {[%clk 0:00:53.4]} 14... Rad8 {[%clk 0:01:58.1]} 15. Rac1 {[%clk
0:00:52.1]} 15... Qe6 {[%clk 0:01:49.8]} 16. e3 {[%clk 0:00:48.2]} 16... Rb8
{[%clk 0:01:40.5]} 17. Na4 {[%clk 0:00:48.1]} 17... Bc8 {[%clk 0:01:30.9]} 18.
b3 {[%clk 0:00:47.1]} 18... Re8 {[%clk 0:01:29.4]} 19. Nc5 {[%clk 0:00:46.7]}
19... Qe7 {[%clk 0:01:29.4]} 20. Qc3 {[%clk 0:00:45.4]} 20... d6 {[%clk
0:01:26.3]} 21. Na4 {[%clk 0:00:36.5]} 21... c5 {[%clk 0:01:25.4]} 22. Bxf6
{[%clk 0:00:36.7]} 22... Bxf6 {[%clk 0:01:24.5]} 23. Qxa5 {[%clk 0:00:37.3]}
23... Bg4 {[%clk 0:01:23.1]} 24. Rd2 {[%clk 0:00:34.1]} 24... h5 {[%clk
0:01:19.4]} 25. Nc3 {[%clk 0:00:25]} 25... Be6 {[%clk 0:01:01.6]} 26. Nd5 {[%clk
0:00:24.5]} 26... Bxd5 {[%clk 0:01:02]} 27. Bxd5 {[%clk 0:00:25.3]} 27... h4
{[%clk 0:01:01.1]} 28. Qa4 {[%clk 0:00:23.2]} 28... Rb4 {[%clk 0:00:59.2]} 29.
Qc6 {[%clk 0:00:19.8]} 29... hxg3 {[%clk 0:00:48.4]} 30. hxg3 {[%clk 0:00:19.3]}
30... Rg4 {[%clk 0:00:49]} 31. Rcd1 {[%clk 0:00:14.9]} 31... Kg7 {[%clk
0:00:47.8]} 32. Bg2 {[%clk 0:00:15.2]} 32... Rh8 {[%clk 0:00:43]} 33. Qf3 {[%clk
0:00:14.7]} 33... Rb4 {[%clk 0:00:41.7]} 34. Qd5 {[%clk 0:00:13.4]} 34... Rh5
{[%clk 0:00:41.4]} 35. Qc6 {[%clk 0:00:12.1]} 35... Bc3 {[%clk 0:00:38.7]} 36.
Rd5 {[%clk 0:00:11.6]} 36... Rh8 {[%clk 0:00:37.7]} 37. R5d3 {[%clk 0:00:09.9]}
37... Bf6 {[%clk 0:00:35.7]} 38. Qf3 {[%clk 0:00:10.4]} 38... c4 {[%clk
0:00:34.7]} 39. bxc4 {[%clk 0:00:10.2]} 39... Rxc4 {[%clk 0:00:35.6]} 40. Rb3
{[%clk 0:00:08.8]} 40... Rc2 {[%clk 0:00:35.1]} 41. Rdb1 {[%clk 0:00:07.8]}
41... Rxa2 {[%clk 0:00:33.2]} 42. Rb7 {[%clk 0:00:07.6]} 42... Rc2 {[%clk
0:00:32.1]} 43. Rd1 {[%clk 0:00:06.4]} 43... Rh5 {[%clk 0:00:29]} 44. Qe4 {[%clk
0:00:05.8]} 44... Rc3 {[%clk 0:00:22]} 45. Qxe7 {[%clk 0:00:05.3]} 45... Bxe7
{[%clk 0:00:22.9]} 46. Ra1 {[%clk 0:00:05.4]} 46... Rhc5 {[%clk 0:00:19.9]} 47.
Raa7 {[%clk 0:00:05.6]} 47... Rc1+ {[%clk 0:00:20.3]} 48. Kh2 {[%clk 0:00:06]}
48... R1c2 {[%clk 0:00:19.8]} 49. Kh3 {[%clk 0:00:05.7]} 49... Rxf2 {[%clk
0:00:19.3]} 50. Rxc7 {[%clk 0:00:06.2]} 50... Rxc7 {[%clk 0:00:19.7]} 51. Rxc7
{[%clk 0:00:06.2]} 51... Bg5 {[%clk 0:00:20]} 52. Bd5 {[%clk 0:00:06]} 52...
Bxe3 {[%clk 0:00:19.8]} 53. Rd7 {[%clk 0:00:05.7]} 53... Bc5 {[%clk 0:00:19.9]}
54. Kg4 {[%clk 0:00:05.1]} 54... Rf5 {[%clk 0:00:19.8]} 55. Bc4 {[%clk
0:00:04.7]} 55... Kf8 {[%clk 0:00:19]} 56. Rb7 {[%clk 0:00:04.3]} 56... Bd4
{[%clk 0:00:19.1]} 57. Kh3 {[%clk 0:00:03.9]} 57... Be5 {[%clk 0:00:18.7]} 58.
g4 {[%clk 0:00:04.1]} 58... Rf4 {[%clk 0:00:18.6]} 59. Bd5 {[%clk 0:00:03.7]}
59... g5 {[%clk 0:00:18.6]} 60. Ra7 {[%clk 0:00:03.2]} 60... Kg7 {[%clk
0:00:17.4]} 61. Rb7 {[%clk 0:00:03.5]} 61... Kg6 {[%clk 0:00:17.6]} 62. Ra7
{[%clk 0:00:04]} 62... Rf2 {[%clk 0:00:16.9]} 63. Be4+ {[%clk 0:00:02.4]} 63...
Kg7 {[%clk 0:00:16.8]} 64. Bg2 {[%clk 0:00:01.5]} 64... d5 {[%clk 0:00:16.6]}
65. Ra4 {[%clk 0:00:02.1]} 65... d4 {[%clk 0:00:15.9]} 66. Ra3 {[%clk 0:00:02]}
66... Rc2 {[%clk 0:00:15.2]} 67. Rd3 {[%clk 0:00:02.4]} 67... Kf6 {[%clk
0:00:15]} 68. Rf3+ {[%clk 0:00:02.1]} 68... Ke7 {[%clk 0:00:15.4]} 69. Rd3
{[%clk 0:00:02.2]} 69... Kd6 {[%clk 0:00:15.9]} 70. Rb3 {[%clk 0:00:02.1]} 70...
Kc5 {[%clk 0:00:15.8]} 71. Rb8 {[%clk 0:00:02.1]} 71... Bxb8 {[%clk 0:00:15.5]}
0-1

[Event "Late-Titled-Tuesday-Blitz-April-23-2024"]
[Site "Chess.com"]
[Date "2024.04.23"]
[Round "1"]
[White "Giantgoogachess"]
[Black "Reality-Stone"]
[Result "1/2-1/2"]
[WhiteElo "2292"]
[BlackElo "2617"]
[TimeControl "180+1"]
[EndTime "14:08:26 PDT"]
[Termination "Game drawn by stalemate"]

1. d4 {[%clk 0:02:57.2]} 1... d6 {[%clk 0:02:58.9]} 2. e4 {[%clk 0:02:56.7]}
2... e5 {[%clk 0:02:58.9]} 3. Nf3 {[%clk 0:02:56.1]} 3... Nd7 {[%clk 0:02:57.5]}
4. Nc3 {[%clk 0:02:55.8]} 4... Ngf6 {[%clk 0:02:58]} 5. Bc4 {[%clk 0:02:56.3]}
5... Be7 {[%clk 0:02:58]} 6. O-O {[%clk 0:02:56.9]} 6... O-O {[%clk 0:02:58.2]}
7. Re1 {[%clk 0:02:57]} 7... c6 {[%clk 0:02:58.6]} 8. a4 {[%clk 0:02:57.1]} 8...
a6 {[%clk 0:02:57.5]} 9. a5 {[%clk 0:02:53.4]} 9... h6 {[%clk 0:02:54.5]} 10. h3
{[%clk 0:02:52]} 10... Re8 {[%clk 0:02:54.2]} 11. b3 {[%clk 0:02:22.3]} 11...
Qc7 {[%clk 0:02:51.3]} 12. Bb2 {[%clk 0:02:18.1]} 12... Bf8 {[%clk 0:02:48.4]}
13. Qd2 {[%clk 0:02:16.5]} 13... exd4 {[%clk 0:02:44.8]} 14. Qxd4 {[%clk
0:02:15.6]} 14... Ne5 {[%clk 0:02:43.6]} 15. Be2 {[%clk 0:02:14.2]} 15... Be6
{[%clk 0:02:41]} 16. Na4 {[%clk 0:02:11.4]} 16... Rad8 {[%clk 0:02:34.2]} 17. c4
{[%clk 0:01:57.3]} 17... c5 {[%clk 0:02:22.9]} 18. Qe3 {[%clk 0:01:55.7]} 18...
Nfd7 {[%clk 0:02:05.8]} 19. Nc3 {[%clk 0:01:52.1]} 19... Nc6 {[%clk 0:02:04.4]}
20. Qd2 {[%clk 0:01:49]} 20... Nde5 {[%clk 0:02:01.9]} 21. Nd5 {[%clk
0:01:45.9]} 21... Bxd5 {[%clk 0:01:56.6]} 22. exd5 {[%clk 0:01:45.6]} 22... Nb4
{[%clk 0:01:53.7]} 23. Bc3 {[%clk 0:01:23.2]} 23... Ng6 {[%clk 0:01:45.5]} 24.
Bxb4 {[%clk 0:01:09.8]} 24... cxb4 {[%clk 0:01:46.4]} 25. Qxb4 {[%clk
0:01:10.3]} 25... Nf4 {[%clk 0:01:46.8]} 26. Bf1 {[%clk 0:01:11]} 26... Qd7
{[%clk 0:01:36.3]} 27. Kh2 {[%clk 0:01:08.8]} 27... Qf5 {[%clk 0:01:28]} 28. Qd2
{[%clk 0:01:05.5]} 28... Nxh3 {[%clk 0:01:22.8]} 29. Qd4 {[%clk 0:00:19.5]}
29... Nf4 {[%clk 0:01:11.2]} 30. Kg1 {[%clk 0:00:10.6]} 30... g6 {[%clk
0:01:05.3]} 31. Qd2 {[%clk 0:00:08.2]} 31... Bg7 {[%clk 0:01:03.2]} 32. Rxe8+
{[%clk 0:00:08.8]} 32... Rxe8 {[%clk 0:01:04.1]} 33. Re1 {[%clk 0:00:09]} 33...
Rxe1 {[%clk 0:00:51.4]} 34. Qxe1 {[%clk 0:00:09.2]} 34... h5 {[%clk 0:00:51.9]}
35. Qb4 {[%clk 0:00:09]} 35... Nh3+ {[%clk 0:00:45.6]} 36. gxh3 {[%clk 0:00:09]}
36... Qxf3 {[%clk 0:00:45.7]} 37. Qxd6 {[%clk 0:00:07.2]} 37... Bd4 {[%clk
0:00:44.4]} 38. Qb8+ {[%clk 0:00:06.6]} 38... Kg7 {[%clk 0:00:43.4]} 39. Qh2
{[%clk 0:00:07.4]} 39... Qxb3 {[%clk 0:00:36.6]} 40. Qg2 {[%clk 0:00:05.6]}
40... Qa2 {[%clk 0:00:31.8]} 41. d6 {[%clk 0:00:04.8]} 41... Qxa5 {[%clk
0:00:30.8]} 42. Qxb7 {[%clk 0:00:04.7]} 42... Qg5+ {[%clk 0:00:29.5]} 43. Qg2
{[%clk 0:00:03]} 43... Qf6 {[%clk 0:00:28.9]} 44. d7 {[%clk 0:00:02.5]} 44...
Bb6 {[%clk 0:00:25.5]} 45. Kh1 {[%clk 0:00:02.1]} 45... Qd6 {[%clk 0:00:20.7]}
46. Qd5 {[%clk 0:00:02.5]} 46... Qxd5+ {[%clk 0:00:16.8]} 47. cxd5 {[%clk
0:00:02.4]} 47... a5 {[%clk 0:00:17.7]} 48. Bb5 {[%clk 0:00:02.8]} 48... Kf6
{[%clk 0:00:17.7]} 49. Kg2 {[%clk 0:00:03.5]} 49... Ke5 {[%clk 0:00:17.9]} 50.
Bc6 {[%clk 0:00:04.3]} 50... h4 {[%clk 0:00:17.4]} 51. Kf3 {[%clk 0:00:04.8]}
51... f5 {[%clk 0:00:17.6]} 52. Kg2 {[%clk 0:00:02.8]} 52... g5 {[%clk
0:00:17.3]} 53. Kf3 {[%clk 0:00:03.1]} 53... Kd6 {[%clk 0:00:16.9]} 54. Ke2
{[%clk 0:00:03.1]} 54... Kc5 {[%clk 0:00:17.1]} 55. Kf3 {[%clk 0:00:03.3]} 55...
Kb4 {[%clk 0:00:17.3]} 56. d6 {[%clk 0:00:03.4]} 56... a4 {[%clk 0:00:17.4]} 57.
Bd5 {[%clk 0:00:03.8]} 57... a3 {[%clk 0:00:17.6]} 58. Be6 {[%clk 0:00:04.5]}
58... f4 {[%clk 0:00:16.8]} 59. Kg4 {[%clk 0:00:04.7]} 59... Kc5 {[%clk
0:00:17.4]} 60. Kxg5 {[%clk 0:00:04.7]} 60... Kxd6 {[%clk 0:00:18]} 61. Ba2
{[%clk 0:00:05.2]} 61... Kxd7 {[%clk 0:00:18]} 62. Kxf4 {[%clk 0:00:05.5]} 62...
Bxf2 {[%clk 0:00:18.1]} 63. Kg4 {[%clk 0:00:06]} 63... Kd6 {[%clk 0:00:18.2]}
64. Kf3 {[%clk 0:00:06.1]} 64... Bg3 {[%clk 0:00:17.9]} 65. Kg2 {[%clk
0:00:06.7]} 65... Kc5 {[%clk 0:00:18.4]} 66. Bg8 {[%clk 0:00:07.3]} 66... Kb4
{[%clk 0:00:18.9]} 67. Bf7 {[%clk 0:00:08]} 67... Kc3 {[%clk 0:00:19.5]} 68. Bg8
{[%clk 0:00:08.6]} 68... Kb2 {[%clk 0:00:20.1]} 69. Bf7 {[%clk 0:00:09.2]} 69...
a2 {[%clk 0:00:20.7]} 70. Bxa2 {[%clk 0:00:09.6]} 70... Kxa2 {[%clk 0:00:21.6]}
71. Kh1 {[%clk 0:00:10.1]} 71... Kb3 {[%clk 0:00:22.5]} 72. Kg2 {[%clk 0:00:11]}
72... Kc4 {[%clk 0:00:23.4]} 73. Kh1 {[%clk 0:00:11.9]} 73... Kd5 {[%clk
0:00:24.3]} 74. Kg2 {[%clk 0:00:12.8]} 74... Ke5 {[%clk 0:00:25.2]} 75. Kh1
{[%clk 0:00:13.7]} 75... Kf5 {[%clk 0:00:26.1]} 76. Kg2 {[%clk 0:00:14.6]} 76...
Bf4 {[%clk 0:00:27]} 77. Kh1 {[%clk 0:00:15.5]} 77... Kg5 {[%clk 0:00:27.9]} 78.
Kg2 {[%clk 0:00:16.4]} 78... Be5 {[%clk 0:00:28.8]} 79. Kh1 {[%clk 0:00:17.3]}
79... Kf4 {[%clk 0:00:29.7]} 80. Kg2 {[%clk 0:00:18.2]} 80... Ke4 {[%clk
0:00:30.1]} 81. Kh1 {[%clk 0:00:19.1]} 81... Kf3 {[%clk 0:00:31]} 82. Kg1 {[%clk
0:00:19.6]} 82... Kg3 {[%clk 0:00:31.9]} 83. Kh1 {[%clk 0:00:20.5]} 83... Kxh3
{[%clk 0:00:32.8]} 84. Kg1 {[%clk 0:00:21.4]} 84... Kg3 {[%clk 0:00:33.6]} 85.
Kh1 {[%clk 0:00:22.3]} 85... h3 {[%clk 0:00:34.1]} 86. Kg1 {[%clk 0:00:23.2]}
86... h2+ {[%clk 0:00:34.8]} 87. Kh1 {[%clk 0:00:24.1]} 87... Kh3 {[%clk
0:00:35.5]} 1/2-1/2

[Event "Late-Titled-Tuesday-Blitz-April-23-2024"]
[Site "Chess.com"]
[Date "2024.04.23"]
[Round "1"]
[White "KorolDimitriy75"]
[Black "Hongjin"]
[Result "1/2-1/2"]
[WhiteElo "2345"]
[BlackElo "2638"]
[TimeControl "180+1"]
[EndTime "14:08:39 PDT"]
[Termination "Game drawn - insufficient material"]

1. d4 {[%clk 0:03:00.9]} 1... d6 {[%clk 0:02:59.2]} 2. Nf3 {[%clk 0:03:00.2]}
2... Nf6 {[%clk 0:02:59.4]} 3. c4 {[%clk 0:03:00.4]} 3... g6 {[%clk 0:02:59.8]}
4. Nc3 {[%clk 0:03:00.9]} 4... Bg7 {[%clk 0:03:00.3]} 5. e4 {[%clk 0:03:01.1]}
5... O-O {[%clk 0:03:00.7]} 6. Be2 {[%clk 0:03:02]} 6... Bg4 {[%clk 0:03:00.9]}
7. Be3 {[%clk 0:03:01.6]} 7... Nc6 {[%clk 0:02:59.6]} 8. O-O {[%clk 0:02:58.1]}
8... Bxf3 {[%clk 0:02:58.2]} 9. Bxf3 {[%clk 0:02:59]} 9... e5 {[%clk 0:02:54.7]}
10. d5 {[%clk 0:02:59]} 10... Ne7 {[%clk 0:02:52.8]} 11. c5 {[%clk 0:02:54.2]}
11... Ne8 {[%clk 0:02:47.6]} 12. Qb3 {[%clk 0:02:48.6]} 12... b6 {[%clk
0:02:46.8]} 13. cxd6 {[%clk 0:02:48.2]} 13... Nxd6 {[%clk 0:02:42.6]} 14. Nb5
{[%clk 0:02:14.4]} 14... f5 {[%clk 0:02:40.1]} 15. Rac1 {[%clk 0:02:03.9]} 15...
fxe4 {[%clk 0:02:30.2]} 16. Bxe4 {[%clk 0:01:47.1]} 16... Nxe4 {[%clk
0:02:21.7]} 17. d6+ {[%clk 0:01:36.9]} 17... Kh8 {[%clk 0:02:22.1]} 18. dxe7
{[%clk 0:01:25.3]} 18... Qxe7 {[%clk 0:02:22.7]} 19. Rxc7 {[%clk 0:01:20.5]}
19... Qh4 {[%clk 0:02:19]} 20. Rxa7 {[%clk 0:00:41.5]} 20... Rxa7 {[%clk
0:02:11]} 21. Nxa7 {[%clk 0:00:42.4]} 21... Bh6 {[%clk 0:02:08.2]} 22. Qxb6
{[%clk 0:00:32.2]} 22... Bf4 {[%clk 0:01:27]} 23. Bxf4 {[%clk 0:00:30.7]} 23...
Qxf4 {[%clk 0:01:15.9]} 24. Qe3 {[%clk 0:00:28.8]} 24... Qf5 {[%clk 0:01:13.7]}
25. Nc6 {[%clk 0:00:19.6]} 25... Re8 {[%clk 0:01:03.2]} 26. Re1 {[%clk
0:00:16.8]} 26... Nf6 {[%clk 0:00:59.6]} 27. Nxe5 {[%clk 0:00:16.7]} 27... Kg7
{[%clk 0:00:58.9]} 28. h3 {[%clk 0:00:16.1]} 28... h5 {[%clk 0:00:56.4]} 29. a3
{[%clk 0:00:14]} 29... Re7 {[%clk 0:00:53]} 30. b4 {[%clk 0:00:13.9]} 30... Kh7
{[%clk 0:00:49.1]} 31. b5 {[%clk 0:00:13]} 31... Nd5 {[%clk 0:00:49.3]} 32. Qd4
{[%clk 0:00:13]} 32... Nf4 {[%clk 0:00:48.3]} 33. Re3 {[%clk 0:00:12.1]} 33...
Qg5 {[%clk 0:00:45.9]} 34. g3 {[%clk 0:00:09.9]} 34... Ne6 {[%clk 0:00:39.1]}
35. Qe4 {[%clk 0:00:09.1]} 35... Ng7 {[%clk 0:00:35.8]} 36. h4 {[%clk
0:00:08.5]} 36... Qf6 {[%clk 0:00:35.4]} 37. Qf4 {[%clk 0:00:08.4]} 37... Nf5
{[%clk 0:00:34.7]} 38. Re1 {[%clk 0:00:08.4]} 38... Qe6 {[%clk 0:00:33.8]} 39.
a4 {[%clk 0:00:07.6]} 39... Qd6 {[%clk 0:00:33]} 40. a5 {[%clk 0:00:06.1]} 40...
Nd4 {[%clk 0:00:33.2]} 41. Kh1 {[%clk 0:00:05.1]} 41... Qd5+ {[%clk 0:00:33.1]}
42. Qe4 {[%clk 0:00:05.5]} 42... Rxe5 {[%clk 0:00:31.1]} 43. Qxd5 {[%clk
0:00:03.8]} 43... Rxd5 {[%clk 0:00:30.6]} 44. Rd1 {[%clk 0:00:03.7]} 44... Rxb5
{[%clk 0:00:30.3]} 45. Rxd4 {[%clk 0:00:03.9]} 45... Rxa5 {[%clk 0:00:30.9]} 46.
Rd7+ {[%clk 0:00:04.5]} 46... Kh6 {[%clk 0:00:31.4]} 47. Kg2 {[%clk 0:00:05.2]}
47... Ra3 {[%clk 0:00:32]} 48. Rf7 {[%clk 0:00:05.5]} 48... Rb3 {[%clk
0:00:32.4]} 49. Rf3 {[%clk 0:00:06.4]} 49... Rb4 {[%clk 0:00:32.9]} 50. Re3
{[%clk 0:00:06.5]} 50... Rc4 {[%clk 0:00:33.5]} 51. Re2 {[%clk 0:00:06.9]} 51...
Rb4 {[%clk 0:00:33.8]} 52. Re3 {[%clk 0:00:07.4]} 52... Ra4 {[%clk 0:00:34.5]}
53. Re6 {[%clk 0:00:07.4]} 53... Ra5 {[%clk 0:00:35]} 54. Rd6 {[%clk 0:00:07.8]}
54... Rc5 {[%clk 0:00:35.4]} 55. Re6 {[%clk 0:00:08]} 55... Rc4 {[%clk
0:00:35.8]} 56. Rf6 {[%clk 0:00:08.2]} 56... Rc3 {[%clk 0:00:33.7]} 57. f4
{[%clk 0:00:06.8]} 57... Rc2+ {[%clk 0:00:33.6]} 58. Kh3 {[%clk 0:00:06.8]}
58... Rc3 {[%clk 0:00:34.5]} 59. f5 {[%clk 0:00:06.7]} 59... Rf3 {[%clk
0:00:33.7]} 60. Rxg6+ {[%clk 0:00:06.4]} 60... Kh7 {[%clk 0:00:34.4]} 61. Rg5
{[%clk 0:00:07.3]} 61... Kh6 {[%clk 0:00:35]} 62. Kg2 {[%clk 0:00:07.5]} 62...
Ra3 {[%clk 0:00:35.2]} 63. Rg6+ {[%clk 0:00:07.6]} 63... Kh7 {[%clk 0:00:35.5]}
64. Re6 {[%clk 0:00:07.6]} 64... Rb3 {[%clk 0:00:35.5]} 65. Re2 {[%clk
0:00:05.7]} 65... Kg7 {[%clk 0:00:35.3]} 66. Re6 {[%clk 0:00:05.5]} 66... Rb5
{[%clk 0:00:34.4]} 67. Rg6+ {[%clk 0:00:04.7]} 67... Kh7 {[%clk 0:00:35]} 68.
Rg5 {[%clk 0:00:04.6]} 68... Kh6 {[%clk 0:00:35.1]} 69. f6 {[%clk 0:00:03.9]}
69... Rb2+ {[%clk 0:00:33.2]} 70. Kh3 {[%clk 0:00:03.7]} 70... Rb7 {[%clk
0:00:27.3]} 71. Rf5 {[%clk 0:00:03.7]} 71... Rf7 {[%clk 0:00:27.6]} 72. Rf4
{[%clk 0:00:03.9]} 72... Kg6 {[%clk 0:00:27.8]} 73. g4 {[%clk 0:00:03.3]} 73...
hxg4+ {[%clk 0:00:28.3]} 74. Kxg4 {[%clk 0:00:03.7]} 74... Rxf6 {[%clk
0:00:27.3]} 75. h5+ {[%clk 0:00:04]} 75... Kg7 {[%clk 0:00:27.5]} 76. Rxf6
{[%clk 0:00:03.9]} 76... Kxf6 {[%clk 0:00:27.9]} 77. h6 {[%clk 0:00:04.1]} 77...
Kg6 {[%clk 0:00:28.5]} 78. h7 {[%clk 0:00:04.4]} 78... Kxh7 {[%clk 0:00:29.1]}
1/2-1/2